bitfinex/quotes_BTCUSD_20250814
["timestamp","ask_amount","ask_price","bid_price","bid_amount"]
[1755160704263,0.08272325,121760.0,121750.0,1.1786941]
[1755160705134,0.08272325,121760.0,121750.0,0.69584196]
[1755160705542,0.08272325,121760.0,121750.0,1.1786941]
[1755160706594,0.08272325,121760.0,121750.0,1.07593761]
[1755160707423,0.08272325,121760.0,121750.0,1.07308761]
[1755160707631,0.08272325,121760.0,121750.0,1.07408761]
[1755160708652,0.08272325,121760.0,121750.0,1.07693761]
[1755160709239,0.08272325,121760.0,121750.0,1.07893761]
[1755160709649,0.08272325,121760.0,121750.0,1.07793761]
[1755160710031,0.08272325,121760.0,121750.0,1.07893761]
[1755160710242,0.08272325,121760.0,121750.0,1.07608761]
[1755160710404,0.08272325,121760.0,121750.0,0.59323547]
[1755160710803,0.08272325,121760.0,121750.0,1.07608761]
[1755160712034,0.08272325,121760.0,121750.0,1.07893761]
[1755160713109,0.08272325,121760.0,121750.0,1.07608761]
[1755160717442,0.08272325,121760.0,121750.0,1.07893761]
[1755160719520,0.08272325,121760.0,121750.0,0.59608547]
[1755160719724,0.08272325,121760.0,121750.0,1.07893761]
[1755160721492,0.08272325,121760.0,121750.0,1.56178975]
[1755160721899,0.2659,121780.0,121770.0,0.16424406]
[1755160722071,0.34862325,121780.0,121770.0,0.7871188]
[1755160722285,0.34862325,121780.0,121770.0,0.78221575]
[1755160722480,0.35077325,121780.0,121770.0,0.78221575]
[1755160722686,0.35390325,121780.0,121770.0,0.78221575]
[1755160722880,0.35390325,121780.0,121770.0,0.67913201]
[1755160723091,0.34862325,121780.0,121770.0,0.67913201]
[1755160723303,0.34862325,121780.0,121770.0,0.78216929]
[1755160723516,0.34962325,121780.0,121770.0,0.78216929]
[1755160724914,0.34862325,121780.0,121770.0,0.78216929]
[1755160726871,0.34862325,121780.0,121770.0,0.78501929]
[1755160727089,0.34862325,121780.0,121770.0,0.78216929]
[1755160727528,0.34862325,121780.0,121770.0,0.67913201]
[1755160728353,0.34862325,121780.0,121770.0,0.68013201]
[1755160728579,0.34862325,121780.0,121770.0,0.68113201]
[1755160730684,0.35175325,121780.0,121770.0,0.68113201]
[1755160731532,0.35390325,121780.0,121770.0,0.68113201]
[1755160732156,0.34862325,121780.0,121770.0,0.68113201]
[1755160732904,0.34862325,121780.0,121770.0,0.68398201]
[1755160733325,0.34862325,121780.0,121770.0,0.68113201]
[1755160733770,0.35390325,121780.0,121770.0,0.68113201]
[1755160733972,0.34862325,121780.0,121770.0,0.68113201]
[1755160736608,0.08272325,121780.0,121770.0,1.02113201]
[1755160737012,0.08487325,121780.0,121770.0,1.02113201]
[1755160737242,0.08800325,121780.0,121770.0,1.02113201]
[1755160738571,0.08800325,121780.0,121770.0,0.53630987]
[1755160738754,0.08800325,121780.0,121770.0,0.50624406]
[1755160740979,0.08800325,121780.0,121770.0,0.9890962]
[1755160741186,0.08800325,121780.0,121770.0,0.44500031]
[1755160742816,0.08800325,121780.0,121770.0,0.342]
[1755160743037,0.08800325,121780.0,121770.0,0.38650003]
[1755160743242,0.08800325,121780.0,121770.0,0.48950034]
[1755160744088,0.08800325,121780.0,121770.0,0.38650003]
[1755160744411,0.08800325,121780.0,121770.0,0.342]
[1755160744683,0.08800325,121780.0,121760.0,0.26725705]
[1755160744919,0.08272325,121770.0,121760.0,0.16425674]
[1755160745127,0.08800325,121770.0,121760.0,0.16425674]
[1755160745846,0.08800325,121770.0,121760.0,0.16630995]
[1755160746344,0.08800325,121770.0,121760.0,0.16830995]
[1755160747444,0.08800325,121770.0,121760.0,0.17030995]
[1755160747669,0.08800325,121770.0,121760.0,0.16425674]
[1755160747670,0.1248197,121770.0,121760.0,0.16425674]
[1755160747983,0.1248197,121770.0,121760.0,0.16830995]
[1755160748190,0.1248197,121770.0,121760.0,0.16930995]
[1755160748418,0.1248197,121770.0,121760.0,0.16725674]
[1755160748610,0.1248197,121770.0,121760.0,0.16930995]
[1755160749929,0.1248197,121770.0,121760.0,0.16725674]
[1755160750068,0.1248197,121770.0,121760.0,0.003]
[1755160750270,0.16389167,121770.0,121760.0,0.003]
[1755160750922,0.42979167,121770.0,121760.0,0.003]
[1755160751339,0.42979167,121770.0,121750.0,0.16567018]
[1755160751496,0.42666167,121770.0,121750.0,0.16567018]
[1755160751701,0.42666167,121770.0,121760.0,0.16425755]
[1755160751880,0.3905697,121770.0,121760.0,0.16425755]
[1755160752304,0.3905697,121770.0,121750.0,0.64852232]
[1755160752501,0.3905697,121770.0,121750.0,0.64952232]
[1755160752709,0.3875897,121770.0,121750.0,0.64952232]
[1755160752909,0.00298,121760.0,121750.0,0.64952232]
[1755160753266,0.08776325,121760.0,121750.0,0.64952232]
[1755160753451,0.08776325,121760.0,121750.0,0.65052232]
[1755160753884,0.08776325,121760.0,121750.0,0.64952232]
[1755160754417,0.08776325,121760.0,121750.0,0.64852232]
[1755160754804,0.08776325,121760.0,121750.0,0.75162455]
[1755160755007,0.08776325,121760.0,121750.0,0.27077241]
[1755160756263,0.08776325,121760.0,121750.0,0.75362455]
[1755160756985,0.08776325,121760.0,121750.0,0.27077241]
[1755160757198,0.08776325,121760.0,121750.0,0.75362455]
[1755160758115,0.08776325,121760.0,121750.0,0.27077241]
[1755160759516,0.08776325,121760.0,121750.0,0.75362455]
[1755160760340,0.08776325,121760.0,121750.0,0.58935437]
[1755160760563,0.08776325,121760.0,121750.0,0.34705858]
[1755160760799,0.08776325,121760.0,121750.0,0.27077327]
[1755160762178,0.08776325,121760.0,121750.0,0.10650223]
[1755160763464,0.08776325,121760.0,121750.0,0.10550223]
[1755160763677,0.08776325,121760.0,121750.0,0.0024]
[1755160764111,0.08776325,121760.0,121750.0,0.0014]
[1755160764578,0.53510768,121760.0,121750.0,0.0014]
[1755160766962,0.19510768,121760.0,121750.0,0.0014]
[1755160767213,0.12069018,121760.0,121750.0,0.0014]
[1755160767434,0.12169018,121760.0,121750.0,0.0014]
[1755160768497,0.12269018,121760.0,121750.0,0.0014]
[1755160770987,0.60554232,121760.0,121750.0,0.0014]
[1755160771602,0.12269018,121760.0,121750.0,0.0014]
[1755160771802,0.19849326,121760.0,121750.0,0.0014]
[1755160773680,0.12269018,121760.0,121750.0,0.0014]
[1755160776371,0.14119018,121760.0,121750.0,0.0014]
[1755160779733,0.4826426,121750.0,121740.0,0.001]
[1755160779940,0.57055585,121750.0,121740.0,0.001]
[1755160780146,0.48285214,121740.0,121730.0,0.0185]
[1755160780350,0.14657446,121740.0,121730.0,0.0185]
[1755160780556,0.6325666,121740.0,121730.0,0.01028854]
[1755160780765,0.68220412,121740.0,121730.0,0.01028854]
[1755160780975,0.68220412,121740.0,121730.0,0.00207708]
[1755160780976,0.69754887,121740.0,121730.0,0.00207708]
[1755160781378,0.69754887,121740.0,121720.0,0.0189091]
[1755160781585,0.11170077,121730.0,121720.0,0.0189091]
[1755160781791,0.18350566,121730.0,121720.0,0.0189091]
[1755160782027,0.19450038,121730.0,121720.0,0.0189091]
[1755160783050,0.12474549,121730.0,121720.0,0.0189091]
[1755160783256,0.12574549,121730.0,121720.0,0.0189091]
[1755160783676,0.12674549,121730.0,121720.0,0.0189091]
[1755160785975,0.12674549,121730.0,121720.0,0.01069585]
[1755160786187,0.60959763,121730.0,121720.0,0.01069585]
[1755160786393,0.62493265,121730.0,121720.0,0.0024826]
[1755160786596,0.70096269,121730.0,121720.0,0.0024826]
[1755160786797,0.70096269,121730.0,121710.0,0.0034]
[1755160787003,0.35176325,121720.0,121710.0,0.0034]
[1755160787216,0.37668744,121720.0,121700.0,0.01150363]
[1755160787405,0.08272325,121710.0,121700.0,0.01150363]
[1755160787642,0.08791325,121710.0,121700.0,0.01150363]
[1755160787847,0.08791325,121710.0,121700.0,0.0034]
[1755160788052,0.11078744,121710.0,121700.0,0.0034]
[1755160789857,0.12610732,121710.0,121700.0,0.0034]
[1755160790078,0.19640211,121710.0,121700.0,0.0034]
[1755160790966,0.22105711,121710.0,121700.0,0.0034]
[1755160791589,0.22919955,121710.0,121700.0,0.0034]
[1755160792513,0.73602116,121710.0,121700.0,0.0034]
[1755160793375,1.07602116,121710.0,121700.0,0.0034]
[1755160793593,1.07702116,121710.0,121700.0,0.0034]
[1755160793997,1.10402116,121710.0,121700.0,0.0034]
[1755160794226,1.12782116,121710.0,121700.0,0.0034]
[1755160796240,1.12779672,121710.0,121700.0,0.0034]
[1755160796803,1.10492253,121710.0,121700.0,0.0034]
[1755160796970,0.57430092,121710.0,121700.0,0.0034]
[1755160797598,0.59827039,121710.0,121700.0,0.0034]
[1755160798225,0.61852291,121710.0,121700.0,0.0034]
[1755160798656,1.07740558,121710.0,121700.0,0.0034]
[1755160799273,0.2591,121690.0,121680.0,0.003]
[1755160799440,0.12911869,121690.0,121680.0,0.003]
[1755160799646,0.10320869,121690.0,121680.0,0.003]
[1755160801200,0.12717816,121690.0,121680.0,0.003]
[1755160801618,0.14925113,121690.0,121680.0,0.003]
[1755160801824,0.15550113,121690.0,121680.0,0.003]
[1755160802262,0.15550113,121690.0,121670.0,0.0034]
[1755160802490,0.10479622,121680.0,121670.0,0.0034]
[1755160802696,0.14925113,121680.0,121670.0,0.0034]
[1755160805898,0.16353613,121680.0,121670.0,0.0034]
[1755160806829,0.20048687,121680.0,121670.0,0.0034]
[1755160807235,0.20248687,121680.0,121670.0,0.0034]
[1755160807443,0.2179991,121680.0,121670.0,0.0034]
[1755160809885,0.21800159,121680.0,121670.0,0.0034]
[1755160811851,0.21486159,121680.0,121670.0,0.00546]
[1755160812049,0.16881915,121680.0,121670.0,0.00546]
[1755160812275,0.16676915,121680.0,121670.0,0.00546]
[1755160812498,0.13697192,121680.0,121670.0,0.00831]
[1755160813169,0.13697192,121680.0,121670.0,0.00546]
[1755160813633,0.13697192,121680.0,121670.0,0.00831]
[1755160814551,0.13697192,121680.0,121670.0,0.00546]
[1755160815844,0.13597192,121680.0,121670.0,0.00546]
[1755160816066,0.15234621,121680.0,121670.0,0.00831]
[1755160816283,0.13597192,121680.0,121670.0,0.00831]
[1755160816507,0.09902118,121680.0,121670.0,0.00831]
[1755160816710,0.09802118,121680.0,121670.0,0.00831]
[1755160817551,0.09802118,121680.0,121670.0,0.00546]
[1755160820664,0.09802118,121680.0,121670.0,0.00831]
[1755160821150,0.1102894,121680.0,121670.0,0.00831]
[1755160821354,0.09802118,121680.0,121670.0,0.00831]
[1755160821603,0.09802118,121680.0,121670.0,0.00546]
[1755160822081,0.09802118,121680.0,121670.0,0.00831]
[1755160822329,0.09802118,121680.0,121670.0,0.65554119]
[1755160823149,0.09802118,121680.0,121670.0,0.17268905]
[1755160823393,0.1078233,121680.0,121670.0,0.65554119]
[1755160823843,0.1078233,121680.0,121670.0,0.49116214]
[1755160825672,0.1078233,121680.0,121670.0,0.00831]
[1755160826234,0.1078233,121680.0,121670.0,0.51268905]
[1755160826446,0.09802118,121680.0,121670.0,0.99554119]
[1755160827065,0.09802118,121680.0,121670.0,0.51268905]
[1755160827278,0.09802118,121680.0,121670.0,0.99554119]
[1755160827485,0.09802118,121680.0,121670.0,0.00831]
[1755160827687,0.09802118,121680.0,121670.0,0.17268905]
[1755160828424,0.09802118,121680.0,121670.0,0.00546]
[1755160828616,0.09802118,121680.0,121670.0,0.16983905]
[1755160829037,0.09802118,121680.0,121670.0,0.00546]
[1755160829466,0.09802118,121680.0,121670.0,0.17083905]
[1755160829678,0.09802118,121680.0,121670.0,0.00646]
[1755160829679,0.10325118,121680.0,121670.0,0.00646]
[1755160829901,0.10325118,121680.0,121670.0,0.0044]
[1755160830318,0.10330815,121680.0,121670.0,0.0044]
[1755160832140,0.10330815,121680.0,121670.0,0.0054]
[1755160832329,0.10330815,121680.0,121670.0,0.0064]
[1755160832524,0.11363897,121680.0,121670.0,0.0064]
[1755160833315,0.11363897,121680.0,121670.0,0.0054]
[1755160835897,0.11363462,121680.0,121670.0,0.0054]
[1755160838314,0.09828407,121680.0,121670.0,0.0054]
[1755160841568,0.16054187,121680.0,121670.0,0.0054]
[1755160841803,0.0056,121670.0,121660.0,0.0044]
[1755160842020,0.09348325,121670.0,121660.0,0.0044]
[1755160842221,0.11009044,121670.0,121660.0,0.0044]
[1755160842432,0.08832325,121670.0,121660.0,0.17080256]
[1755160842649,0.08832325,121670.0,121660.0,0.49211214]
[1755160843021,0.08832325,121670.0,121660.0,0.49311214]
[1755160843222,0.08832325,121670.0,121660.0,0.17465256]
[1755160843495,0.08832325,121670.0,121660.0,0.73998913]
[1755160843640,0.08832325,121670.0,121660.0,0.84409136]
[1755160844311,0.08832325,121670.0,121660.0,0.76160693]
[1755160846519,0.35422325,121670.0,121660.0,0.76160693]
[1755160847836,0.08832325,121670.0,121660.0,1.10160693]
[1755160848041,0.08832325,121670.0,121660.0,0.9985047]
[1755160848267,0.08832325,121670.0,121660.0,0.51565256]
[1755160848469,0.08832325,121670.0,121660.0,1.14537708]
[1755160848786,0.08832325,121670.0,121660.0,1.15655147]
[1755160848992,0.08832325,121670.0,121660.0,1.17407165]
[1755160849193,0.08832325,121670.0,121660.0,1.17607165]
[1755160849449,0.08832325,121670.0,121660.0,1.17507165]
[1755160849860,0.08832325,121670.0,121660.0,1.17707165]
[1755160853355,0.0056,121670.0,121660.0,1.17707165]
[1755160853564,0.0056,121670.0,121660.0,1.07372913]
[1755160853782,0.003,121690.0,121680.0,0.16436554]
[1755160854008,0.003,121690.0,121680.0,1.01933805]
[1755160854219,0.003,121690.0,121680.0,1.01728349]
[1755160854434,0.003,121690.0,121680.0,1.12380653]
[1755160854890,0.002,121690.0,121680.0,1.12380653]
[1755160855438,0.002,121690.0,121680.0,1.14880653]
[1755160855654,0.002,121690.0,121680.0,1.04556949]
[1755160855971,0.002,121690.0,121680.0,1.14880653]
[1755160856292,0.003,121700.0,121690.0,0.52935204]
[1755160856495,0.003,121700.0,121690.0,1.57754075]
[1755160857558,0.004,121700.0,121690.0,1.57754075]
[1755160858414,0.005,121700.0,121690.0,1.57754075]
[1755160858612,0.005,121700.0,121690.0,1.68039715]
[1755160859016,0.004,121700.0,121690.0,1.57754075]
[1755160859366,0.003,121700.0,121690.0,1.72641313]
[1755160861471,0.003,121700.0,121690.0,1.70141313]
[1755160861717,0.003,121700.0,121690.0,1.72641313]
[1755160862874,0.003,121700.0,121690.0,1.55454075]
[1755160863089,0.003,121700.0,121690.0,1.57954075]
[1755160864168,0.003,121700.0,121690.0,1.55454075]
[1755160864381,0.003,121700.0,121690.0,1.57954075]
[1755160865446,0.003,121700.0,121690.0,1.60418375]
[1755160867439,0.003,121700.0,121690.0,1.70674647]
[1755160868278,0.003,121700.0,121690.0,1.68174647]
[1755160868491,0.003,121700.0,121690.0,1.19889433]
[1755160868730,0.00599,121700.0,121690.0,1.22389433]
[1755160870226,0.00599,121700.0,121690.0,1.19889433]
[1755160870393,0.00599,121700.0,121690.0,1.22389433]
[1755160871542,0.00798,121700.0,121690.0,1.19889433]
[1755160871702,0.09070325,121700.0,121690.0,1.1164099]
[1755160876685,0.09070325,121700.0,121690.0,1.11667062]
[1755160877129,0.09070325,121700.0,121690.0,1.01384718]
[1755160882698,0.09070325,121700.0,121690.0,1.16071956]
[1755160882904,0.09070325,121700.0,121690.0,1.24320399]
[1755160886917,0.003,121700.0,121690.0,1.24320399]
[1755160887160,1e-08,121700.0,121690.0,1.75105613]
[1755160887370,0.00599,121710.0,121700.0,0.50433853]
[1755160887371,0.003,121710.0,121700.0,0.50433853]
[1755160887625,0.01837226,121710.0,121700.0,1.646981]
[1755160887794,0.003,121710.0,121700.0,1.646981]
[1755160888714,0.003,121710.0,121700.0,1.647981]
[1755160889582,1e-08,121710.0,121700.0,1.647981]
[1755160889952,1e-08,121710.0,121700.0,1.50940288]
[1755160890870,1e-08,121720.0,121710.0,0.50432503]
[1755160891074,0.06783772,121740.0,121730.0,0.50429803]
[1755160891274,0.08320586,121740.0,121730.0,1.09046338]
[1755160891690,0.08021586,121740.0,121730.0,1.01988884]
[1755160892057,0.08021586,121740.0,121730.0,1.04995465]
[1755160893291,0.06484772,121740.0,121730.0,1.04995465]
[1755160893525,0.06484772,121740.0,121730.0,1.19758886]
[1755160893736,0.06982772,121740.0,121730.0,1.19758886]
[1755160893958,0.07082772,121740.0,121730.0,1.19758886]
[1755160894172,0.07182772,121740.0,121730.0,1.19758886]
[1755160894389,0.07182772,121740.0,121730.0,1.04995465]
[1755160895012,0.07182772,121740.0,121730.0,0.56710251]
[1755160895218,0.07182772,121740.0,121730.0,1.04995465]
[1755160898787,0.00998,121740.0,121730.0,1.04995465]
[1755160899494,0.00998,121740.0,121730.0,0.56710251]
[1755160899748,0.09270325,121740.0,121730.0,1.04995465]
[1755160900207,0.09270325,121740.0,121730.0,1.15302417]
[1755160901350,0.09270325,121740.0,121730.0,1.04995465]
[1755160903855,0.09270325,121740.0,121730.0,0.56710251]
[1755160904072,0.11662325,121740.0,121730.0,0.27545565]
[1755160904722,0.11662325,121740.0,121730.0,0.61545565]
[1755160905348,0.11662325,121740.0,121730.0,0.60797565]
[1755160909022,0.11662325,121740.0,121730.0,0.44367762]
[1755160909428,0.11662325,121740.0,121730.0,0.60797565]
[1755160913647,0.11662325,121740.0,121730.0,0.5049187]
[1755160913990,0.11662325,121740.0,121730.0,0.34062067]
[1755160914422,0.38252325,121740.0,121730.0,0.34062067]
[1755160914590,0.38252325,121740.0,121730.0,0.44379329]
[1755160914819,0.38152325,121740.0,121730.0,0.44379329]
[1755160915090,0.38252325,121740.0,121730.0,0.44379329]
[1755160916012,0.38152325,121740.0,121730.0,0.44379329]
[1755160916646,0.38252325,121740.0,121730.0,0.44379329]
[1755160919558,0.35860325,121740.0,121730.0,0.44379329]
[1755160920359,0.35860325,121740.0,121730.0,1.17342789]
[1755160920578,0.35661325,121740.0,121730.0,1.17342789]
[1755160920997,0.08772325,121740.0,121730.0,1.17342789]
[1755160921429,0.08772325,121740.0,121730.0,1.07025527]
[1755160922112,0.005,121740.0,121730.0,1.55310741]
[1755160922321,0.005,121740.0,121730.0,1.70074162]
[1755160922534,0.004,121740.0,121730.0,1.70074162]
[1755160923372,0.004,121740.0,121730.0,1.21788948]
[1755160923814,0.003,121740.0,121730.0,0.73503734]
[1755160924016,0.003,121740.0,121730.0,1.21788948]
[1755160924979,0.003,121740.0,121730.0,1.21888948]
[1755160925104,0.00117827,121740.0,121730.0,1.21888948]
[1755160925541,0.00117827,121740.0,121730.0,1.07225527]
[1755160925860,0.00117827,121740.0,121730.0,1.26409425]
[1755160926302,0.00117827,121740.0,121730.0,1.30165716]
[1755160929442,0.00117827,121740.0,121730.0,1.10981818]
[1755160930663,0.00117827,121740.0,121730.0,0.62696604]
[1755160930872,0.00117827,121740.0,121730.0,1.10981818]
[1755160931165,0.00046334,121740.0,121730.0,1.13445318]
[1755160936700,0.00046334,121740.0,121730.0,1.09689027]
[1755160937798,0.00046334,121740.0,121730.0,0.61403813]
[1755160938009,0.00562334,121740.0,121730.0,1.09689027]
[1755160938245,0.00562334,121740.0,121730.0,1.24410668]
[1755160939075,0.00562334,121740.0,121730.0,0.76125454]
[1755160939288,0.00562334,121740.0,121730.0,1.24410668]
[1755160939724,0.00562334,121740.0,121730.0,1.09689027]
[1755160939936,0.00346334,121740.0,121730.0,1.09689027]
[1755160940821,0.00346334,121740.0,121730.0,1.13337932]
[1755160941333,0.00562334,121740.0,121730.0,1.13337932]
[1755160942306,0.00346334,121740.0,121730.0,1.13337932]
[1755160945307,0.00136253,121740.0,121730.0,1.13337932]
[1755160945955,0.00352253,121740.0,121730.0,1.13337932]
[1755160946683,0.00352253,121740.0,121730.0,0.65052718]
[1755160946888,0.00352253,121740.0,121730.0,1.13337932]
[1755160951371,0.00138771,121740.0,121730.0,1.13337932]
[1755160952023,0.00138771,121740.0,121730.0,1.13275865]
[1755160952467,0.00138771,121740.0,121730.0,1.32459763]
[1755160952668,0.00138771,121740.0,121730.0,1.33296483]
[1755160952875,0.08411096,121740.0,121730.0,1.33296483]
[1755160953495,0.08711096,121740.0,121730.0,1.33296483]
[1755160956844,0.08711096,121740.0,121730.0,1.33495483]
[1755160957475,0.003,121740.0,121730.0,1.48261281]
[1755160958217,0.06684771,121770.0,121760.0,0.50425755]
[1755160958421,0.15158096,121770.0,121760.0,1.12053743]
[1755160958629,0.17768096,121770.0,121760.0,1.12053743]
[1755160958835,0.17768096,121770.0,121760.0,0.63768529]
[1755160959052,0.17768096,121770.0,121760.0,0.44336193]
[1755160959268,0.17768096,121770.0,121760.0,0.10336193]
[1755160959483,0.17768096,121770.0,121750.0,0.10336193]
[1755160959706,0.06885771,121770.0,121760.0,0.34]
[1755160959968,0.15158096,121770.0,121760.0,0.34]
[1755160960404,0.17768096,121770.0,121760.0,0.34]
[1755160960848,0.18068096,121770.0,121760.0,0.34]
[1755160961294,0.18268096,121770.0,121760.0,0.34]
[1755160962472,0.20094906,121770.0,121760.0,0.34]
[1755160962919,0.20094906,121770.0,121740.0,0.61585954]
[1755160963132,0.08272325,121750.0,121740.0,0.61585954]
[1755160963351,0.08473325,121750.0,121740.0,0.61585954]
[1755160963596,0.08766325,121750.0,121740.0,0.61585954]
[1755160964525,0.08866325,121750.0,121740.0,0.51249761]
[1755160965299,0.08766325,121750.0,121740.0,0.51249761]
[1755160965512,0.08966325,121750.0,121740.0,0.51249761]
[1755160965877,0.09066325,121750.0,121740.0,0.51249761]
[1755160967682,0.09066325,121750.0,121740.0,0.61585954]
[1755160969703,0.09066325,121750.0,121740.0,0.44336193]
[1755160971194,0.09066325,121750.0,121740.0,0.60764647]
[1755160971393,0.09066325,121750.0,121740.0,0.44336193]
[1755160972366,0.09066325,121750.0,121740.0,0.34]
[1755160973364,0.09066325,121750.0,121740.0,0.33252]
[1755160978150,0.09066325,121750.0,121740.0,0.41500443]
[1755160978282,0.09066325,121750.0,121740.0,0.33252]
[1755160978492,0.09066325,121750.0,121740.0,0.81537214]
[1755160979524,0.09066325,121750.0,121740.0,0.33252]
[1755160980974,0.09066325,121750.0,121740.0,0.81537214]
[1755160981186,0.09066325,121750.0,121740.0,0.33252]
[1755160985482,0.09066325,121750.0,121740.0,0.33451]
[1755160986534,0.09066325,121750.0,121740.0,0.41699443]
[1755160986889,0.09066325,121750.0,121740.0,0.33451]
[1755160988647,0.08572325,121750.0,121740.0,0.33451]
[1755160989095,0.09106325,121750.0,121740.0,0.33451]
[1755160989501,0.09106325,121750.0,121740.0,0.33252]
[1755160989907,0.09106325,121750.0,121740.0,0.33458]
[1755160990116,0.08572325,121750.0,121740.0,1.06420111]
[1755160990347,0.08572325,121750.0,121740.0,1.06721111]
[1755160990906,0.08572325,121750.0,121740.0,1.06420111]
[1755160991101,0.08572325,121750.0,121740.0,0.89991657]
[1755160991287,0.08572325,121750.0,121740.0,0.98171668]
[1755160992644,0.08572325,121750.0,121740.0,1.08507861]
[1755160992789,0.08572325,121750.0,121740.0,0.92079407]
[1755160993138,0.09106325,121750.0,121740.0,0.33252]
[1755160993519,0.09106325,121750.0,121740.0,0.43588193]
[1755160993730,0.12675958,121750.0,121740.0,0.33252]
[1755160993986,0.09106325,121750.0,121740.0,0.33252]
[1755160994423,0.15791096,121750.0,121740.0,0.33252]
[1755160995396,0.15591096,121750.0,121740.0,0.33252]
[1755160996139,0.15491096,121750.0,121740.0,0.33252]
[1755160996261,0.18232096,121750.0,121730.0,0.11172913]
[1755160996480,0.08591325,121740.0,121730.0,0.0083672]
[1755160996749,0.08806325,121740.0,121730.0,0.0083672]
[1755160997946,0.09006325,121740.0,121730.0,0.0083672]
[1755160999201,0.11471425,121740.0,121730.0,0.0083672]
[1755160999403,0.13956056,121740.0,121730.0,0.0083672]
[1755160999598,0.40746056,121740.0,121730.0,0.0083672]
[1755160999804,0.40746056,121740.0,121720.0,0.34]
[1755161000020,0.08272325,121730.0,121720.0,0.34]
[1755161000203,0.08806325,121730.0,121720.0,0.34]
[1755161001084,0.08806325,121730.0,121720.0,0.35366495]
[1755161001707,0.09006325,121730.0,121720.0,0.35366495]
[1755161001907,0.13080931,121730.0,121720.0,0.35366495]
[1755161002337,0.13080931,121730.0,121720.0,0.34]
[1755161002541,0.13080931,121730.0,121710.0,0.003]
[1755161002757,0.13080931,121730.0,121710.0,0.343]
[1755161002758,0.08591325,121720.0,121710.0,0.343]
[1755161002911,0.08806325,121720.0,121710.0,0.343]
[1755161003236,0.10134418,121720.0,121710.0,0.343]
[1755161003472,0.08806325,121720.0,121710.0,0.343]
[1755161004454,0.09006325,121720.0,121710.0,0.343]
[1755161005605,0.09206325,121720.0,121710.0,0.35646162]
[1755161006280,0.35796325,121720.0,121710.0,0.35646162]
[1755161006938,0.35262325,121720.0,121710.0,0.35852162]
[1755161008037,0.38885751,121720.0,121710.0,0.35852162]
[1755161008475,0.35796325,121720.0,121710.0,0.35852162]
[1755161009339,0.35796325,121720.0,121710.0,0.35646162]
[1755161010490,0.37328418,121720.0,121710.0,0.35646162]
[1755161011284,0.35796325,121720.0,121710.0,0.35646162]
[1755161011525,0.37328293,121720.0,121710.0,0.35646162]
[1755161011753,0.4168508,121720.0,121710.0,0.35646162]
[1755161012392,0.41684977,121720.0,121710.0,0.35646162]
[1755161013577,0.15094977,121720.0,121710.0,0.35646162]
[1755161013805,0.09206325,121720.0,121710.0,0.35646162]
[1755161018176,0.78856692,121720.0,121700.0,0.003]
[1755161018429,0.08565325,121710.0,121700.0,0.003]
[1755161018649,0.08762325,121710.0,121700.0,0.003]
[1755161018865,0.15641935,121710.0,121700.0,0.003]
[1755161019526,0.08762325,121710.0,121700.0,0.003]
[1755161020023,0.09262325,121710.0,121700.0,0.003]
[1755161020455,0.10794259,121710.0,121700.0,0.003]
[1755161020863,0.11194259,121710.0,121700.0,0.003]
[1755161021283,0.09662325,121710.0,121700.0,0.003]
[1755161021461,0.13295348,121710.0,121700.0,0.003]
[1755161023881,0.16124148,121710.0,121700.0,0.003]
[1755161029748,0.15624148,121710.0,121700.0,0.003]
[1755161033605,0.13124148,121710.0,121700.0,0.005]
[1755161033750,0.13124148,121710.0,121700.0,0.003]
[1755161038637,0.12831148,121710.0,121700.0,0.003]
[1755161038800,0.13124148,121710.0,121700.0,0.003]
[1755161042563,0.13127306,121710.0,121700.0,0.003]
[1755161044545,0.12637306,121710.0,121700.0,0.005]
[1755161044897,0.13127306,121710.0,121700.0,0.005]
[1755161045108,0.13127306,121710.0,121700.0,0.003]
[1755161045985,0.12727306,121710.0,121700.0,0.003]
[1755161046200,0.13027306,121710.0,121700.0,0.003]
[1755161046605,0.12727306,121710.0,121700.0,0.003]
[1755161046813,0.12227306,121710.0,121700.0,0.003]
[1755161047021,0.12827306,121710.0,121700.0,0.003]
[1755161048318,0.12829756,121710.0,121700.0,0.003]
[1755161048533,0.12829778,121710.0,121700.0,0.003]
[1755161048757,0.12829778,121710.0,121700.0,0.00514]
[1755161049640,0.12339778,121710.0,121700.0,0.00514]
[1755161049857,0.12860778,121710.0,121700.0,0.00514]
[1755161050528,0.12339778,121710.0,121700.0,0.00514]
[1755161050747,0.12860778,121710.0,121700.0,0.00514]
[1755161051221,0.12860778,121710.0,121700.0,0.003]
[1755161051721,0.10238689,121710.0,121700.0,0.49098214]
[1755161051938,0.08372325,121710.0,121700.0,0.65532067]
[1755161052612,0.08072325,121710.0,121700.0,0.49098214]
[1755161052819,0.07772325,121710.0,121700.0,0.49098214]
[1755161053031,0.07872325,121710.0,121700.0,0.49098214]
[1755161053243,0.07972325,121710.0,121700.0,0.49098214]
[1755161054212,0.07972325,121710.0,121700.0,0.65532067]
[1755161054533,0.07972325,121710.0,121700.0,0.7378051]
[1755161058012,0.07972325,121710.0,121700.0,0.25495296]
[1755161058217,0.07972325,121710.0,121700.0,0.49098214]
[1755161060246,0.07972325,121710.0,121700.0,0.48799214]
[1755161062438,0.07972325,121710.0,121700.0,0.49098214]
[1755161062860,0.07972325,121710.0,121700.0,0.48799214]
[1755161063266,0.07972325,121710.0,121700.0,0.00514]
[1755161063474,0.07972325,121710.0,121700.0,0.6543849]
[1755161063680,0.07972325,121710.0,121700.0,0.7378051]
[1755161065775,0.07972325,121710.0,121700.0,0.09061443]
[1755161065992,0.07972325,121710.0,121700.0,0.49098214]
[1755161067069,0.07972325,121710.0,121700.0,0.65532067]
[1755161072213,0.07972325,121710.0,121700.0,0.17246853]
[1755161072455,0.07972325,121710.0,121700.0,0.65532067]
[1755161073064,0.07972325,121710.0,121700.0,0.65233067]
[1755161073300,0.07972325,121710.0,121700.0,0.48799214]
[1755161074786,0.07972325,121710.0,121700.0,0.65233067]
[1755161075546,0.07972325,121710.0,121700.0,0.7378051]
[1755161076398,0.07972325,121710.0,121700.0,0.99532067]
[1755161076963,0.07972325,121710.0,121700.0,1.47817281]
[1755161078129,0.07972325,121710.0,121700.0,1.58153474]
[1755161078523,0.07872325,121710.0,121700.0,1.58153474]
[1755161078724,0.07772325,121710.0,121700.0,1.58153474]
[1755161078966,0.07772325,121710.0,121700.0,1.58253474]
[1755161079145,0.07772325,121710.0,121700.0,1.66501917]
[1755161080045,0.07772325,121710.0,121700.0,0.69931489]
[1755161080314,0.07772325,121710.0,121700.0,1.66501917]
[1755161081486,0.07772325,121710.0,121700.0,1.18216703]